fUST/lending_fUST_20241109
["ID","MTS","AMOUNT","RATE_DAILY","PERIOD"]
[341725476,1731147034684,-500.0,0.00022191,2]
[341725477,1731147034693,-500.0,0.00022191,2]
[341725478,1731147034703,-500.0,0.00022191,2]
[341725479,1731147034712,-510.39901436,0.00022191,2]
[341725480,1731147034721,-502.48476694,0.00022191,2]
[341725481,1731147034730,-500.0,0.00022191,2]
[341725482,1731147034739,-511.67932376,0.00022191,2]
[341725483,1731147034748,-500.0,0.00022191,2]
[341725484,1731147034757,-500.0,0.00022191,2]
[341725485,1731147034766,-151.0,0.00022191,7]
[341725486,1731147034776,-151.0,0.00022191,3]
[341725487,1731147034788,-500.0,0.00022191,2]
[341725488,1731147034798,-500.0,0.00022191,2]
[341725489,1731147034807,-527.7844212,0.00022191,2]
[341725490,1731147034817,-500.0,0.00022191,2]
[341725491,1731147034830,-500.0,0.00022191,2]
[341725492,1731147034839,-500.0,0.00022191,2]
[341725493,1731147034849,-500.0,0.00022191,2]
[341725494,1731147034858,-500.0,0.00022191,2]
[341725495,1731147034869,-500.0,0.00022191,2]
[341725496,1731147034879,-569.59665897,0.00022191,2]
[341725497,1731147034888,-527.6668031,0.00022191,2]
[341725498,1731147034898,-500.0,0.00022191,2]
[341725499,1731147034908,-500.0,0.00022191,2]
[341725500,1731147034917,-213.542936,0.00022191,7]
[341725501,1731147034927,-500.0,0.00022191,2]
[341725502,1731147034936,-213.542936,0.00022191,7]
[341725503,1731147034945,-500.0,0.00022191,2]
[341725504,1731147034955,-510.17652792,0.00022191,2]
[341725505,1731147034965,-500.0,0.00022191,2]
[341725506,1731147034974,-500.0,0.00022191,2]
[341725507,1731147034984,-500.0,0.00022191,2]
[341725508,1731147034994,-500.0,0.00022191,2]
[341725509,1731147035005,-500.0,0.00022191,2]
[341725510,1731147035015,-500.0,0.00022191,2]
[341725511,1731147035025,-500.0,0.00022191,2]
[341725512,1731147035034,-500.0,0.00022191,2]
[341725513,1731147035045,-376.58239924,0.00022191,2]
[341725514,1731147035056,-500.0,0.00022191,2]
[341725515,1731147035065,-500.0,0.00022191,2]
[341725516,1731147035075,-500.0,0.00022191,2]
[341725517,1731147035085,-320.66135092,0.00022191,2]
[341725518,1731147035096,-508.285773,0.00022191,2]
[341725519,1731147035106,-500.0,0.00022191,2]
[341725520,1731147035116,-500.0,0.00022191,2]
[341725521,1731147035127,-500.0,0.00022191,2]
[341725522,1731147035136,-500.0,0.00022191,2]
[341725523,1731147035146,-500.0,0.00022465,2]
[341725524,1731147035155,-500.0,0.00022465,2]
[341725525,1731147035165,-500.0,0.00022465,2]
[341725526,1731147035174,-500.0,0.00022465,2]
[341725527,1731147035183,-500.0,0.00022465,2]
[341725528,1731147035192,-500.0,0.00022465,2]
[341725529,1731147035201,-500.0,0.00022465,2]
[341725530,1731147035210,-500.0,0.00022465,2]
[341725531,1731147035219,-151.0,0.00022465,7]
[341725532,1731147035229,-500.0,0.00022465,2]
[341725533,1731147035238,-500.0,0.00022465,2]
[341725534,1731147035248,-153.35085577,0.00022465,2]
[341725535,1731147035257,-500.0,0.00022465,2]
[341725536,1731147035267,-306.035044,0.00022465,7]
[341725537,1731147035276,-306.035044,0.00022465,7]
[341725538,1731147035292,-500.0,0.00022465,2]
[341725539,1731147035301,-500.0,0.00022465,2]
[341725540,1731147035310,-1489.53,0.00022465,2]
[341725541,1731147035320,-500.0,0.00022465,2]
[341725542,1731147035330,-460.10995685,0.00022465,2]
[341725543,1731147035340,-500.0,0.00022465,2]
[341725544,1731147035349,-500.0,0.00022465,2]
[341725545,1731147035358,-673.09,0.00022465,2]
[341725546,1731147035368,-500.0,0.00022465,2]
[341725547,1731147035378,-382.85745923,0.00022465,2]
[341725548,1731147035387,-500.0,0.00022465,2]
[341725549,1731147035396,-500.0,0.00022465,2]
[341725550,1731147035405,-500.0,0.00022465,2]
[341725551,1731147035414,-500.0,0.00022465,2]
[341725552,1731147035425,-500.0,0.00022465,2]
[341725553,1731147035435,-500.0,0.00022465,2]
[341725554,1731147035444,-500.0,0.00022465,2]
[341725555,1731147035453,-151.0,0.00022465,7]
[341725556,1731147035462,-512.35594706,0.00022465,2]
[341725557,1731147035471,-500.0,0.00022465,2]
[341725558,1731147035482,-500.0,0.00022465,2]
[341725559,1731147035492,-500.0,0.00022465,2]
[341725560,1731147035503,-528.84334787,0.00022465,2]
[341725561,1731147035512,-500.0,0.00022465,2]
[341725562,1731147035521,-500.0,0.00022465,2]
[341725563,1731147035532,-500.0,0.00022465,2]
[341725564,1731147035543,-213.542936,0.00022465,7]
[341725565,1731147035553,-213.542936,0.00022465,7]
[341725566,1731147035562,-500.0,0.00022465,2]
[341725567,1731147035572,-500.0,0.00022465,2]
[341725568,1731147035581,-500.0,0.00022465,2]
[341725569,1731147035591,-500.0,0.00022465,2]
[341725570,1731147035602,-500.0,0.00022465,2]
[341725571,1731147035613,-500.0,0.00022465,2]
[341725572,1731147035622,-500.0,0.00022465,2]
[341725573,1731147035632,-510.64222441,0.00022465,2]
[341725574,1731147035641,-414.84633381,0.00022465,2]
[341725575,1731147035650,-336.73459829,0.00022465,2]
[341725576,1731147035659,-500.0,0.00022465,2]
[341725577,1731147035668,-571.41950831,0.00022465,2]
[341725578,1731147035678,-500.0,0.00022465,2]
[341725579,1731147035687,-500.0,0.00022465,2]
[341725580,1731147035696,-500.0,0.00022465,2]
[341725581,1731147035706,-500.0,0.00022465,2]
[341725582,1731147035716,-510.15727013,0.00022592,2]
[341725583,1731147035725,-525.17440598,0.00022739,2]
[341725584,1731147035734,-452.29748454,0.00022739,2]
[341725585,1731147035745,-500.0,0.00022739,2]
[341725586,1731147035754,-512.20857647,0.00022739,2]
[341725587,1731147035763,-500.0,0.00022739,2]
[341725588,1731147035773,-500.0,0.00022739,2]
[341725589,1731147035782,-525.01981729,0.00022739,2]
[341725590,1731147035791,-508.73711328,0.00022739,2]
[341725591,1731147035800,-500.0,0.00022739,2]
[341725592,1731147035809,-500.0,0.00022739,2]
[341725593,1731147035818,-500.0,0.00022739,2]
[341725594,1731147035832,-1489.53,0.00022739,2]
[341725595,1731147035841,-500.0,0.00022739,2]
[341725596,1731147035850,-500.0,0.00022739,2]
[341725597,1731147035859,-500.0,0.00022739,2]
[341725598,1731147035868,-673.09,0.00022739,2]
[341725599,1731147035877,-500.0,0.00022739,2]
[341725600,1731147035888,-500.0,0.00022739,2]
[341725601,1731147035897,-500.0,0.00022739,2]
[341725602,1731147035908,-500.0,0.00022739,2]
[341725603,1731147035918,-151.0,0.00022739,7]
[341725604,1731147035928,-500.0,0.00022739,2]
[341725605,1731147035937,-500.0,0.00022739,2]
[341725606,1731147035946,-500.0,0.00022739,2]
[341725607,1731147035955,-500.0,0.00022739,2]
[341725608,1731147035964,-500.0,0.00022739,2]
[341725609,1731147035974,-213.542936,0.00022739,7]
[341725610,1731147035983,-213.542936,0.00022739,7]
[341725611,1731147035993,-500.0,0.00022739,2]
[341725612,1731147036007,-500.0,0.00022739,2]
[341725613,1731147036016,-500.0,0.00022739,2]
[341725614,1731147036026,-190.38734558,0.00022739,2]
[341725656,1731147038165,-151.0,0.00022191,7]
[341725657,1731147038175,-154.588969,0.00022465,7]
[341725658,1731147038185,-508.28211066,0.00022592,2]
[341725659,1731147038195,-309.61265442,0.00022739,2]
[341725660,1731147038204,-500.0,0.00022739,2]
[341725661,1731147038213,-500.0,0.00022739,2]
[341725662,1731147038223,-645.93418314,0.00022739,2]
[341725663,1731147038232,-500.0,0.00022739,2]
[341725664,1731147038242,-500.0,0.00022739,2]
[341725665,1731147038252,-502.82096784,0.00022828,2]
[341725666,1731147038262,-151.0,0.00023012,7]
[341725667,1731147038272,-295.94236902,0.00023012,2]
[341725668,1731147038281,-529.98907087,0.00023012,2]
[341725669,1731147038290,-404.57231739,0.00023012,2]
[341725670,1731147038299,-500.0,0.00023013,2]
[341725671,1731147038309,-500.0,0.00023013,2]
[341725672,1731147038319,-500.0,0.00023013,2]
[341725673,1731147038328,-151.0,0.00023013,7]
[341725674,1731147038337,-500.0,0.00023013,2]
[341725675,1731147038347,-486.06073871,0.00023013,2]
[341725676,1731147038356,-193.47397161,0.00023013,2]
[341725677,1731147038365,-1489.53,0.00023013,2]
[341725678,1731147038375,-500.0,0.00023013,2]
[341725679,1731147038385,-673.09,0.00023013,2]
[341725680,1731147038394,-500.0,0.00023013,2]
[341725681,1731147038403,-500.0,0.00023013,2]
[341725682,1731147038412,-500.0,0.00023013,2]
[341725683,1731147038421,-500.0,0.00023013,2]
[341725684,1731147038432,-500.0,0.00023013,2]
[341725685,1731147038441,-532.36279572,0.00023013,2]
[341725686,1731147038451,-500.0,0.00023013,2]
[341725687,1731147038462,-500.0,0.00023013,2]
[341725688,1731147038471,-500.0,0.00023013,2]
[341725689,1731147038481,-500.0,0.00023013,2]
[341725690,1731147038490,-500.0,0.00023013,2]
[341725691,1731147038500,-500.0,0.00023013,2]
[341725692,1731147038510,-525.9144849,0.00023013,2]
[341725693,1731147038519,-528.11309388,0.00023013,2]
[341725694,1731147038528,-678.424786,0.00023197,2]
[341725695,1731147038538,-2300.72,0.00023277,3]
[341725696,1731147038547,-2139.28,0.00023277,3]
[341725697,1731147038556,-500.0,0.00023287,2]
[341725698,1731147038566,-531.82821705,0.00023287,2]
[341725699,1731147038576,-500.0,0.00023287,2]
[341725700,1731147038585,-306.035044,0.00023287,7]
[341725701,1731147038595,-306.035044,0.00023287,7]
[341725702,1731147038604,-1489.53,0.00023287,2]
[341725703,1731147038613,-500.0,0.00023287,2]
[341725704,1731147038622,-673.09,0.00023287,2]
[341725705,1731147038632,-500.0,0.00023287,2]
[341725706,1731147038641,-500.0,0.00023287,2]
[341725707,1731147038651,-500.0,0.00023287,2]
[341725708,1731147038660,-500.0,0.00023287,2]
[341725709,1731147038671,-500.0,0.00023287,2]
[341725710,1731147038680,-547.7228671,0.00023287,2]
[341725711,1731147038690,-500.0,0.00023287,2]
[341725712,1731147038700,-500.0,0.00023287,2]
[341725713,1731147038709,-500.0,0.00023287,2]
[341725714,1731147038718,-500.0,0.00023287,2]
[341725715,1731147038727,-1000.0,0.00023542,2]
[341725716,1731147038817,-500.0,0.00023561,2]
[341725717,1731147038831,-1489.53,0.00023561,2]
[341725718,1731147038841,-500.0,0.00023561,2]
[341725719,1731147038851,-673.09,0.00023561,2]
[341725720,1731147038860,-500.0,0.00023561,2]
[341725721,1731147038870,-500.0,0.00023561,2]
[341725722,1731147038881,-151.0,0.00023561,7]
[341725723,1731147038890,-500.0,0.00023561,2]
[341725724,1731147038900,-156.26955617,0.00023561,2]
[341725725,1731147038910,-213.542936,0.00023561,7]
[341725726,1731147038921,-213.542936,0.00023561,7]
[341725727,1731147038931,-500.0,0.00023561,2]
[341725728,1731147038941,-500.0,0.00023561,2]
[341725729,1731147038951,-541.99700002,0.00023561,2]
[341725730,1731147038961,-500.0,0.00023561,2]
[341725731,1731147038971,-500.0,0.00023561,2]
[341725732,1731147038980,-396.40531524,0.00023595,2]
[341725733,1731147038990,-420.0,0.00023807,2]
[341725734,1731147039000,-151.0,0.00023835,7]
[341725735,1731147039009,-500.0,0.00023835,2]
[341725736,1731147039019,-151.0,0.00023835,7]
[341725737,1731147039028,-1489.53,0.00023835,2]
[341725738,1731147039038,-500.0,0.00023835,2]
[341725739,1731147039047,-673.09,0.00023835,2]
[341725740,1731147039057,-500.0,0.00023835,2]
[341725741,1731147039067,-500.0,0.00023835,2]
[341725742,1731147039076,-500.0,0.00023835,2]
[341725743,1731147039086,-500.0,0.00023835,2]
[341725744,1731147039096,-500.0,0.00023835,2]
[341725745,1731147039106,-500.0,0.00023835,2]
[341725746,1731147039115,-500.0,0.00023835,2]
[341725747,1731147039125,-678.424786,0.00023882,2]
[341725748,1731147039134,-500.0,0.00024109,2]
[341725749,1731147039144,-1489.53,0.00024109,2]
[341725750,1731147039153,-500.0,0.00024109,2]
[341725751,1731147039163,-673.09,0.00024109,2]
[341725752,1731147039172,-500.0,0.00024109,2]
[341725753,1731147039182,-500.0,0.00024109,2]
[341725754,1731147039191,-566.53228627,0.00024109,2]
[341725755,1731147039200,-500.0,0.00024109,2]
[341725756,1731147039209,-500.0,0.00024109,2]
[341725757,1731147039218,-500.0,0.00024109,2]
[341725758,1731147039228,-500.0,0.00024109,2]
[341725759,1731147039237,-7812.21635549,0.00024189,2]
[341725760,1731147039246,-306.035044,0.00024343,7]
[341725761,1731147039256,-306.035044,0.00024343,7]
[341725762,1731147039265,-500.0,0.00024383,2]
[341725763,1731147039274,-1489.53,0.00024383,2]
[341725764,1731147039284,-500.0,0.00024383,2]
[341725765,1731147039293,-673.09,0.00024383,2]
[341725766,1731147039303,-500.0,0.00024383,2]
[341725767,1731147039313,-500.0,0.00024383,2]
[341725768,1731147039323,-151.0,0.00024383,7]
[341725769,1731147039332,-213.542936,0.00024383,7]
[341725770,1731147039342,-213.542936,0.00024383,7]
[341725771,1731147039351,-500.0,0.00024383,2]
[341725772,1731147039361,-500.0,0.00024383,2]
[341725773,1731147039371,-500.0,0.00024383,2]
[341725774,1731147039381,-392.36583933,0.00024383,2]
[341725775,1731147039391,-205.906167,0.00024514,7]
[341725776,1731147039400,-7812.21635549,0.00024539,2]
[341725777,1731147039409,-678.424786,0.00024567,2]
[341725778,1731147039419,-500.0,0.00024656,2]
[341725779,1731147039428,-500.0,0.00024656,2]
[341725780,1731147039438,-500.0,0.00024656,2]
[341725781,1731147039447,-500.0,0.00024657,2]
[341725782,1731147039457,-151.0,0.00024657,7]
[341725783,1731147039467,-1489.53,0.00024657,2]
[341725784,1731147039476,-500.0,0.00024657,2]
[341725785,1731147039486,-673.09,0.00024657,2]
[341725786,1731147039496,-500.0,0.00024657,2]
[341725787,1731147039505,-547.6458971,0.00024657,2]
[341725788,1731147039515,-500.0,0.00024657,2]
[341725789,1731147039524,-500.0,0.00024657,2]
[341725790,1731147039534,-500.0,0.00024657,2]
[341725792,1731147039543,-500.0,0.00024658,2]
[341725793,1731147039552,-152.48619171,0.00024658,2]
[341725794,1731147039562,-500.0,0.00024658,2]
[341725795,1731147039572,-500.0,0.00024658,2]
[341725796,1731147039582,-300.92747533,0.00024658,2]
[341725797,1731147039591,-306.035044,0.00024754,7]
[341725798,1731147039601,-306.035044,0.00024754,7]
[341725799,1731147039610,-7812.21635549,0.00024881,2]
[341725800,1731147039620,-500.0,0.00024931,2]
[341725801,1731147039629,-1489.53,0.00024931,2]
[341725802,1731147039639,-526.82036076,0.00024931,2]
[341725803,1731147039648,-673.09,0.00024931,2]
[341725804,1731147039657,-500.0,0.00024931,2]
[341725805,1731147039667,-153.60975,0.00024931,7]
[341725806,1731147039676,-213.542936,0.00024931,7]
[341725807,1731147039686,-213.542936,0.00024931,7]
[341725808,1731147039695,-551.16974633,0.00024931,2]
[341725809,1731147039705,-500.0,0.00024931,2]
[341725810,1731147039715,-485.50341476,0.00024931,2]
[341725811,1731147039724,-7812.21635549,0.00025164,2]
[341725812,1731147039733,-500.0,0.00025205,2]
[341725813,1731147039743,-1489.53,0.00025205,2]
[341725814,1731147039753,-673.09,0.00025205,2]
[341725815,1731147039762,-500.0,0.00025205,2]
[341725816,1731147039771,-500.0,0.00025205,2]
[341725817,1731147039780,-7812.21635549,0.00025229,2]
[341725818,1731147039790,-151.0,0.00025354,7]
[341725819,1731147039799,-396.40531524,0.00025373,2]
[341725820,1731147039808,-500.0,0.00025479,2]
[341725821,1731147039817,-1489.53,0.00025479,2]
[341725822,1731147039831,-673.09,0.00025479,2]
[341725823,1731147039840,-313.61428046,0.00025479,2]
[341725824,1731147039850,-500.0,0.00025479,2]
[341725825,1731147039860,-7812.21635549,0.0002549,2]
[341725826,1731147039870,-306.035044,0.00025528,7]
[341725827,1731147039879,-306.035044,0.00025528,7]
[341725828,1731147039889,-213.542936,0.00025713,7]
[341725829,1731147039898,-213.542936,0.00025713,7]
[341725830,1731147039909,-151.0,0.00025753,7]
[341725831,1731147039919,-500.0,0.00025753,2]
[341725832,1731147039929,-1489.53,0.00025753,2]
[341725833,1731147039939,-673.09,0.00025753,2]
[341725834,1731147039949,-500.0,0.00025753,2]
[341725835,1731147039959,-825.93360488,0.00026,7]
[341725836,1731147039969,-7812.21635555,0.00026002,2]
[341725837,1731147039978,-500.0,0.00026027,2]
[341725839,1731147039988,-1489.53,0.00026027,2]
[341725840,1731147039999,-673.09,0.00026027,2]
[341725841,1731147040008,-500.0,0.00026027,2]
[341725842,1731147040018,-500.0,0.00026301,2]
[341725843,1731147040027,-151.0,0.00026301,7]
[341725844,1731147040037,-1489.53,0.00026301,2]
[341725845,1731147040047,-673.09,0.00026301,2]
[341725846,1731147040056,-500.0,0.00026301,2]
[341725847,1731147040065,-500.0,0.00026575,2]
[341725848,1731147040074,-1489.53,0.00026575,2]
[341725849,1731147040083,-673.09,0.00026575,2]
[341725850,1731147040093,-500.0,0.00026575,2]
[341725851,1731147040102,-500.0,0.00026849,2]
[341725852,1731147040112,-1489.53,0.00026849,2]
[341725853,1731147040121,-673.09,0.00026849,2]
[341725854,1731147040130,-500.0,0.00026849,2]
[341725855,1731147040139,-500.0,0.00027123,2]
[341725856,1731147040148,-1489.53,0.00027123,2]
[341725857,1731147040157,-673.09,0.00027123,2]
[341725858,1731147040167,-500.0,0.00027123,2]
[341725859,1731147040176,-213.542936,0.0002715,7]
[341725860,1731147040186,-213.542936,0.0002715,7]
[341725861,1731147040196,-396.40531524,0.0002715,2]
[341725862,1731147040205,-614.07700889,0.00027397,2]
[341725863,1731147040214,-306.035044,0.00027397,7]
[341725864,1731147040223,-306.035044,0.00027397,7]
[341725865,1731147040232,-1489.53,0.00027397,2]
[341725866,1731147040242,-673.09,0.00027397,2]
[341725867,1731147040252,-500.0,0.00027397,2]
[341725868,1731147040261,-500.0,0.00027397,2]
[341725869,1731147040271,-371.6262316,0.00027397,2]
[341725870,1731147040280,-500.0,0.00027397,2]
[341725871,1731147040289,-500.0,0.00027397,2]
[341725872,1731147040298,-500.0,0.00027397,2]
[341725873,1731147040307,-500.0,0.00027397,2]
[341725874,1731147040317,-500.0,0.00027397,2]
[341725875,1731147040327,-459.93203868,0.00027609,5]
[341725876,1731147040337,-1489.53,0.00027671,2]
[341725877,1731147040346,-673.09,0.00027671,2]
[341725878,1731147040355,-500.0,0.00027671,2]
[341725879,1731147040365,-158.671,0.000278,2]
[341725880,1731147040374,-1669.53,0.00027935,10]
[341725881,1731147040384,-3112.1,0.00027935,10]
[341725882,1731147040393,-1489.53,0.00027945,2]
[341725883,1731147040403,-673.09,0.00027945,2]
[341725884,1731147040412,-446.79326101,0.00027945,2]
[341725885,1731147040422,-151.0,0.00028217,7]
[341725886,1731147040432,-151.0,0.00028219,7]
[341725887,1731147040443,-1489.61,0.00028219,2]
[341725888,1731147040452,-673.2,0.00028219,2]
[341725889,1731147040462,-599.65712532,0.0002828,2]
[341725890,1731147040471,-501.09205662,0.00028381,2]
[341725891,1731147040479,-503.82383748,0.00028381,2]
[341725892,1731147040488,-305.9382545,0.00028411,30]
[341725893,1731147040497,-224.610666,0.000286,2]
[341725894,1731147040506,-500.0,0.00028683,2]
[341725895,1731147040516,-151.0,0.00028792,7]
[341725896,1731147040525,-150.0,0.000289,2]
[341725897,1731147040534,-1010.82,0.000289,2]
[341725898,1731147040543,-396.40531524,0.00028928,2]
[341725899,1731147040553,-158.698,0.00028957,120]
[341725900,1731147040562,-500.0,0.0002899,5]
[341725901,1731147040572,-500.0,0.00029027,2]
[341725902,1731147040581,-614.0,0.000291,2]
[341725903,1731147040590,-500.0,0.000292,2]
[341725904,1731147040599,-500.0,0.00029201,2]
[341725905,1731147040608,-500.0,0.00029201,2]
[341725906,1731147040617,-508.94669036,0.00029202,2]
[341725907,1731147040627,-500.0,0.00029202,2]
[341725908,1731147040636,-500.0,0.00029202,2]
[341725909,1731147040645,-460.50727018,0.00029202,2]
[341725910,1731147040654,-500.0,0.00029202,2]
[341725911,1731147040664,-500.0,0.00029202,2]
[341725912,1731147040673,-500.0,0.00029202,2]
[341725913,1731147040683,-500.0,0.00029202,2]
[341725914,1731147040692,-500.0,0.00029202,2]
[341725915,1731147040702,-500.0,0.00029202,2]
[341725916,1731147040711,-508.77202144,0.00029202,2]
[341725917,1731147040720,-516.74791874,0.00029202,2]
[341725918,1731147040729,-500.0,0.00029202,2]
[341725919,1731147040738,-500.0,0.00029202,2]
[341725920,1731147040748,-500.0,0.00029202,2]
[341725921,1731147040757,-505.14495653,0.00029202,2]
[341725922,1731147040766,-153.90382,0.00029202,7]
[341725923,1731147040775,-217.89509234,0.00029202,2]
[341725924,1731147040785,-500.0,0.00029202,2]
[341725925,1731147040794,-500.0,0.00029202,2]
[341725926,1731147040803,-500.0,0.00029202,2]
[341725927,1731147040813,-500.0,0.00029202,2]
[341725928,1731147040823,-500.0,0.00029202,2]
[341725929,1731147040834,-500.0,0.00029202,2]
[341725930,1731147040844,-500.0,0.00029202,2]
[341725931,1731147040853,-500.0,0.00029202,2]
[341725932,1731147040862,-500.0,0.00029202,2]
[341725933,1731147040872,-500.0,0.00029202,2]
[341725934,1731147040881,-500.0,0.00029202,2]
[341725935,1731147040891,-500.0,0.00029202,2]
[341725936,1731147040902,-607.46678293,0.00029202,2]
[341725937,1731147040912,-252.5904241,0.00029202,2]
[341725938,1731147040922,-500.0,0.00029202,2]
[341725939,1731147040933,-500.0,0.00029202,2]
[341725940,1731147041019,-500.0,0.00029202,2]
[341725941,1731147041028,-500.0,0.00029202,2]
[341725942,1731147041037,-500.0,0.00029202,2]
[341725943,1731147041047,-500.0,0.00029202,2]
[341725944,1731147041057,-531.37909473,0.00029202,2]
[341725945,1731147041066,-181.00090255,0.00029202,2]
[341725946,1731147041075,-503.0589417,0.00029202,2]
[341725947,1731147041085,-517.55575726,0.00029202,2]
[341725948,1731147041094,-516.23497309,0.00029202,2]
[341725949,1731147041103,-500.0,0.00029202,2]
[341725950,1731147041113,-500.0,0.00029202,2]
[341725951,1731147041122,-500.0,0.00029202,2]
[341725952,1731147041131,-500.0,0.00029202,2]
[341725953,1731147041140,-500.0,0.00029202,2]
[341725954,1731147041150,-500.0,0.00029202,2]
[341725955,1731147041159,-500.0,0.00029202,2]
[341725956,1731147041167,-500.0,0.00029202,2]
[341725957,1731147041176,-500.0,0.00029202,2]
[341725958,1731147041186,-500.0,0.00029202,2]
[341725959,1731147041195,-500.0,0.00029202,2]
[341725960,1731147041204,-306.035044,0.00029202,7]
[341725961,1731147041213,-306.035044,0.00029202,7]
[341725962,1731147041222,-306.035044,0.00029202,7]
[341725963,1731147041231,-306.035044,0.00029202,7]
[341725964,1731147041240,-500.0,0.00029202,2]
[341725965,1731147041250,-503.57951531,0.00029202,2]
[341725966,1731147041259,-928.51,0.00029202,2]
[341725967,1731147041268,-500.0,0.00029202,2]
[341725968,1731147041278,-500.0,0.00029202,2]
[341725969,1731147041286,-213.542936,0.00029202,7]
[341725970,1731147041296,-213.542936,0.00029202,7]
[341725971,1731147041304,-213.542936,0.00029202,7]
[341725972,1731147041313,-213.542944,0.00029202,7]
[341725973,1731147041322,-606.367615,0.00029256,2]
[341725974,1731147041331,-500.0,0.00029273,5]
[341725975,1731147041341,-501.71851215,0.00029273,5]
[341725976,1731147041350,-500.0,0.00029273,5]
[341725977,1731147041360,-500.0,0.00029273,5]
[341725978,1731147041369,-500.0,0.00029273,5]
[341725979,1731147041379,-500.0,0.00029273,5]
[341725980,1731147041388,-339.9711129,0.00029273,5]
[341725981,1731147041397,-501.40731008,0.00029273,5]
[341725982,1731147041406,-488.82990542,0.00029294,5]
[341725983,1731147041415,-500.0,0.000293,2]
[341725984,1731147041425,-600.0,0.000293,2]
[341725985,1731147041436,-500.0,0.000293,5]
[341725986,1731147041445,-500.0,0.000293,5]
[341725987,1731147041454,-500.0,0.00029301,2]
[341725988,1731147041464,-500.0,0.00029301,2]
[341725989,1731147041473,-500.0,0.00029301,2]
[341725990,1731147041483,-643.62435138,0.00029301,2]
[341725991,1731147041492,-500.0,0.00029301,2]
[341725992,1731147041501,-500.0,0.00029301,2]
[341725993,1731147041509,-500.0,0.00029301,2]
[341725994,1731147041518,-500.0,0.00029301,2]
[341725995,1731147041528,-504.31897831,0.00029301,2]
[341725996,1731147041536,-506.84153475,0.00029301,2]
[341725997,1731147041546,-359.45162605,0.00029301,2]
[341725998,1731147041555,-505.97552978,0.00029301,2]
[341725999,1731147041564,-501.40874256,0.00029301,2]
[341726000,1731147041573,-500.0,0.00029301,2]
[341726001,1731147041582,-502.66137345,0.00029301,2]
[341726002,1731147041591,-506.70980375,0.00029301,2]
[341726003,1731147041600,-501.57928355,0.00029301,2]
[341726004,1731147041610,-502.42998683,0.00029301,2]
[341726005,1731147041619,-514.55172765,0.00029301,2]
[341726006,1731147041628,-505.16650514,0.00029301,2]
[341726007,1731147041637,-500.0,0.00029301,2]
[341726008,1731147041647,-500.0,0.00029301,2]
[341726009,1731147041656,-500.0,0.00029301,2]
[341726010,1731147041665,-215.49538655,0.00029301,2]
[341726011,1731147041674,-500.0,0.00029301,2]
[341726012,1731147041684,-500.0,0.00029301,2]
[341726013,1731147041695,-500.0,0.00029301,2]
[341726014,1731147041704,-500.0,0.00029301,2]
[341726015,1731147041713,-503.87536501,0.00029301,2]
[341726016,1731147041722,-504.37363535,0.00029301,2]
[341726017,1731147041731,-500.0,0.00029301,2]
[341726018,1731147041740,-502.00352005,0.00029301,2]